Workbook

Sheet PR Liability
A1: PTO 2014
I2: Pay Date
I3: PR1 | M3: PR2 | Q3: PR3 | U3: PR4 | Y3: PR5 | AC3: PR6 | AG3: PR7 | AK3: PR8 | AO3: PR9 | AS3: PR10 | AW3: PR11 | BA3: PR12 | BE3: PR13 | BI3: PR14 | BM3: PR15 | BQ3: PR16 | BU3: PR17 | BY3: PR18 | CC3: PR19 | CG3: PR20 | CK3: PR21 | CO3: PR22 | CS3: PR23 | CW3: PR24 | DA3: PR25 | DE3: PR26
B4: Carryover from 2013 | C4: Carry over cost from 2013 | D4: Used this Year | E4: Accrued this year | F4: Pay Rate | G4: Total Liability for 2014 | H4: Hours Earned | I4: 2014-01-10 | J4: Historical | K4: Adjustment | L4: Hours Earned | M4: 2014-01-24 | N4: Historical | O4: Adjustment | P4: Hours Earned | Q4: 2014-02-07 | R4: Historical | S4: Adjustment | T4: Hours Earned | U4: 2014-02-21 | V4: Historical | W4: Adjustment | X4: Hours Earned | Y4: 2014-03-07 | Z4: Historical | AA4: Adjustment | AB4: Hours Earned | AC4: 2014-03-21 | AD4: Historical | AE4: Adjustment | AF4: Hours Earned | AG4: 2014-04-04 | AH4: Historical | AI4: Adjustment | AJ4: Hours Earned | AK4: 2014-04-18 | AL4: Historical | AM4: Adjustment | AN4: Hours Earned | AO4: 2014-05-02 | AP4: Historical | AQ4: Adjustment | AR4: Hours Earned | AS4: 2014-05-16 | AT4: Historical | AU4: Adjustment | AV4: Hours Earned | AW4: 2014-05-30 | AX4: Historical | AY4: Adjustment | AZ4: Hours Earned | BA4: 2014-06-12 | BB4: Historical | BC4: Adjustment | BD4: Hours Earned | BE4: 2014-06-27 | BF4: Historical | BG4: Adjustment | BH4: Hours Earned | BI4: 2014-07-11 | BJ4: Historical | BK4: Adjustment | BL4: Hours Earned | BM4: 2014-07-25 | BN4: Historical | BO4: Adjustment | BP4: Hours Earned | BQ4: 2014-08-08 | BR4: Historical | BS4: Adjustment | BT4: Hours Earned | BU4: 2014-08-22 | BV4: Historical | BW4: Adjustment | BX4: Hours Earned | BY4: 2014-09-05 | BZ4: Historical | CA4: Adjustment | CB4: Hours Earned | CC4: 2014-09-19 | CD4: Historical | CE4: Adjustment | CF4: Hours Earned | CG4: 2014-10-03 | CH4: Historical | CI4: Adjustment | CJ4: Hours Earned | CK4: 2014-10-17 | CL4: Historical | CM4: Adjustment | CN4: Hours Earned | CO4: 2014-10-31 | CP4: Historical | CQ4: Adjustment | CR4: Hours Earned | CS4: 2014-11-14 | CT4: Historical | CU4: Adjustment | CV4: Hours Earned | CW4: 2014-11-28 | CX4: Historical | CY4: Adjustment | CZ4: Hours Earned | DA4: 2014-12-12 | DB4: Historical | DC4: Adjustment | DD4: Hours Earned | DE4: 2014-12-26 | DF4: Historical | DG4: Adjustment
A5: Bart, David | B5: ='Bart, D'!H6 -> 71.46 | C5: =B5*F5 -> 3930.3 | D5: ='Bart, D'!H39 -> 10 | E5: ='Bart, D'!H5 -> 36.538525 | F5: 55 | G5: =E5*F5 -> 2009.618875 | H5: ='Bart, D'!F12 -> 4.226525 | I5: =H5*F5 -> 232.458875 | J5: 203.2113 | L5: ='Bart, D'!F13 -> 4.616 | M5: =L5*F5 -> 253.88 | N5: 221.9373 | P5: ='Bart, D'!F14 -> 4.616 | Q5: =P5*F5 -> 253.88 | R5: 221.9373 | T5: ='Bart, D'!F15 -> 4.616 | U5: =T5*F5 -> 253.88 | V5: 221.9373 | W5: 715.407073 | X5: ='Bart, D'!F16 -> 4.616 | Y5: =X5*F5 -> 253.88 | AB5: ='Bart, D'!F17 -> 4.616 | AC5: =AB5*F5 -> 253.88 | AF5: ='Bart, D'!F18 -> 4.616 | AG5: =AF5*F5 -> 253.88 | AJ5: ='Bart, D'!F19 -> 0 | AK5: =AJ5*F5 -> 0 | AN5: ='Bart, D'!F20 -> 4.616 | AO5: =AN5*F5 -> 253.88 | AR5: ='Bart, D'!F21 -> 0 | AS5: =AR5*F5 -> 0 | AV5: ='Bart, D'!F22 -> 0 | AW5: =AV5*F5 -> 0 | AZ5: ='Bart, D'!F23 -> 0 | BA5: =AZ5*F5 -> 0 | BD5: ='Bart, D'!F24 -> 0 | BE5: =BD5*F5 -> 0 | BH5: ='Bart, D'!F25 -> 0 | BI5: =BH5*F5 -> 0 | BL5: ='Bart, D'!F26 -> 0 | BM5: =BL5*F5 -> 0 | BP5: ='Bart, D'!F27 -> 0 | BQ5: =BP5*F5 -> 0 | BT5: ='Bart, D'!F28 -> 0 | BU5: =BT5*F5 -> 0 | BX5: ='Bart, D'!F29 -> 0 | BY5: =BX5*F5 -> 0 | CB5: ='Bart, D'!F30 -> 0 | CC5: =CB5*F5 -> 0 | CF5: ='Bart, D'!F31 -> 0 | CG5: =CF5*F5 -> 0 | CJ5: ='Bart, D'!F32 -> 0 | CK5: =CJ5*F5 -> 0 | CN5: ='Bart, D'!F33 -> 0 | CO5: =CN5*F5 -> 0 | CR5: ='Bart, D'!F34 -> 0 | CS5: =CR5*F5 -> 0 | CV5: ='Bart, D'!F35 -> 0 | CW5: =CV5*F5 -> 0 | CZ5: ='Bart, D'!F36 -> 0 | DA5: =CZ5*F5 -> 0 | DD5: ='Bart, D'!F37 -> 0 | DE5: =DD5*F5 -> 0
A6: Bradley, Ryan | B6: ='Bradley, R'!H6 -> 36.95 | C6: 1030.5355 | D6: ='Bradley, R'!H39 -> 27 | E6: ='Bradley, R'!H5 -> 24.64 | F6: 27.89 | G6: 687.2096 | H6: ='Bradley, R'!F12 -> 3.08 | I6: 85.9012 | L6: ='Bradley, R'!F13 -> 3.08 | M6: 85.9012 | P6: ='Bradley, R'!F14 -> 3.08 | Q6: 85.9012 | T6: ='Bradley, R'!F15 -> 3.08 | U6: 85.9012 | X6: ='Bradley, R'!F16 -> 3.08 | Y6: 85.9012 | AB6: ='Bradley, R'!F17 -> 3.08 | AC6: 85.9012 | AF6: ='Bradley, R'!F18 -> 3.08 | AG6: 85.9012 | AJ6: ='Bradley, R'!F19 -> 0 | AK6: 0 | AN6: ='Bradley, R'!F20 -> 3.08 | AO6: 85.9012 | AR6: ='Bradley, R'!F21 -> 0 | AS6: 0 | AV6: ='Bradley, R'!F22 -> 0 | AW6: 0 | AZ6: ='Bradley, R'!F23 -> 0 | BA6: 0 | BD6: ='Bradley, R'!F24 -> 0 | BE6: 0 | BH6: ='Bradley, R'!F25 -> 0 | BI6: 0 | BL6: ='Bradley, R'!F26 -> 0 | BM6: 0 | BP6: ='Bradley, R'!F27 -> 0 | BQ6: 0 | BT6: ='Bradley, R'!F28 -> 0 | BU6: 0 | BX6: ='Bradley, R'!F29 -> 0 | BY6: 0 | CB6: ='Bradley, R'!F30 -> 0 | CC6: 0 | CF6: ='Bradley, R'!F31 -> 0 | CG6: 0 | CJ6: ='Bradley, R'!F32 -> 0 | CK6: 0 | CN6: ='Bradley, R'!F33 -> 0 | CO6: 0 | CR6: ='Bradley, R'!F34 -> 0 | CS6: 0 | CV6: ='Bradley, R'!F35 -> 0 | CW6: 0 | CZ6: ='Bradley, R'!F36 -> 0 | DA6: 0 | DD6: ='Bradley, R'!F37 -> 0 | DE6: 0
A7: Johnson, Scott | B7: ='Johnson, S'!H6 -> 27.8 | C7: 1109.498 | D7: ='Johnson, S'!H39 -> 24 | E7: ='Johnson, S'!H5 -> 24.64 | F7: 39.91 | G7: 983.3824 | H7: ='Johnson, S'!F12 -> 3.08 | I7: 122.9228 | L7: ='Johnson, S'!F13 -> 3.08 | M7: 122.9228 | P7: ='Johnson, S'!F14 -> 3.08 | Q7: 122.9228 | T7: ='Johnson, S'!F15 -> 3.08 | U7: 122.9228 | X7: ='Johnson, S'!F16 -> 3.08 | Y7: 122.9228 | AB7: ='Johnson, S'!F17 -> 3.08 | AC7: 122.9228 | AF7: ='Johnson, S'!F18 -> 3.08 | AG7: 122.9228 | AJ7: ='Johnson, S'!F19 -> 0 | AK7: 0 | AN7: ='Johnson, S'!F20 -> 3.08 | AO7: 122.9228 | AR7: ='Johnson, S'!F21 -> 0 | AS7: 0 | AV7: ='Johnson, S'!F22 -> 0 | AW7: 0 | AZ7: ='Johnson, S'!F23 -> 0 | BA7: 0 | BD7: ='Johnson, S'!F24 -> 0 | BE7: 0 | BH7: ='Johnson, S'!F25 -> 0 | BI7: 0 | BL7: ='Johnson, S'!F26 -> 0 | BM7: 0 | BP7: ='Johnson, S'!F27 -> 0 | BQ7: 0 | BT7: ='Johnson, S'!F28 -> 0 | BU7: 0 | BX7: ='Johnson, S'!F29 -> 0 | BY7: 0 | CB7: ='Johnson, S'!F30 -> 0 | CC7: 0 | CF7: ='Johnson, S'!F31 -> 0 | CG7: 0 | CJ7: ='Johnson, S'!F32 -> 0 | CK7: 0 | CN7: ='Johnson, S'!F33 -> 0 | CO7: 0 | CR7: ='Johnson, S'!F34 -> 0 | CS7: 0 | CV7: ='Johnson, S'!F35 -> 0 | CW7: 0 | CZ7: ='Johnson, S'!F36 -> 0 | DA7: 0 | DD7: ='Johnson, S'!F37 -> 0 | DE7: 0
A8: Macky, Johnny | B8: ='Macky, J'!$H$6 -> 0 | C8: 0 | D8: ='Macky, J'!$H$39 -> 0 | E8: ='Macky, J'!$H$5 -> 0 | F8: 14 | G8: 0 | H8: ='Macky, J'!$F$12 -> 0 | I8: 0 | L8: ='Macky, J'!$F$13 -> 0 | M8: 0 | P8: ='Macky, J'!$F$14 -> 0 | Q8: 0 | T8: ='Macky, J'!$F$15 -> 0 | U8: 0 | X8: ='Macky, J'!$F$16 -> 0 | Y8: 0 | AB8: ='Macky, J'!$F$17 -> 0 | AC8: 0 | AF8: ='Macky, J'!$F$18 -> 0 | AG8: 0 | AJ8: ='Macky, J'!$F$19 -> 0 | AK8: 0 | AN8: ='Macky, J'!$F$20 -> 0 | AO8: 0 | AR8: ='Macky, J'!$F$21 -> 0 | AS8: 0 | AV8: ='Macky, J'!$F$22 -> 0 | AW8: 0 | AZ8: ='Macky, J'!$F$23 -> 0 | BA8: 0 | BD8: ='Macky, J'!$F$24 -> 0 | BE8: 0 | BH8: ='Macky, J'!$F$25 -> 0 | BI8: 0 | BL8: ='Macky, J'!$F$26 -> 0 | BM8: 0 | BP8: ='Macky, J'!$F$27 -> 0 | BQ8: 0 | BT8: ='Macky, J'!$F$28 -> 0 | BU8: 0 | BX8: ='Macky, J'!$F$29 -> 0 | BY8: 0 | CB8: ='Macky, J'!$F$30 -> 0 | CC8: 0 | CF8: ='Macky, J'!$F$31 -> 0 | CG8: 0 | CJ8: ='Macky, J'!$F$32 -> 0 | CK8: 0 | CN8: ='Macky, J'!$F$33 -> 0 | CO8: 0 | CR8: ='Macky, J'!$F$34 -> 0 | CS8: 0 | CV8: ='Macky, J'!$F$35 -> 0 | CW8: 0 | CZ8: ='Macky, J'!$F$36 -> 0 | DA8: 0 | DD8: ='Macky, J'!$F$37 -> 0 | DE8: 0
A9: McClellan, Scott | B9: ='McClellan, S'!$H$6 -> 0 | C9: 0 | D9: ='McClellan, S'!$H$39 -> 0 | E9: ='McClellan, S'!$H$5 -> 3.08 | F9: 15 | G9: 46.2 | H9: ='McClellan, S'!$F$12 -> 0 | I9: 0 | L9: ='McClellan, S'!$F$13 -> 0 | M9: 0 | P9: ='McClellan, S'!$F$14 -> 0 | Q9: 0 | T9: ='McClellan, S'!$F$15 -> 0 | U9: 0 | X9: ='McClellan, S'!$F$16 -> 0 | Y9: 0 | AB9: ='McClellan, S'!$F$17 -> 0 | AC9: 0 | AF9: ='McClellan, S'!$F$18 -> 0 | AG9: 0 | AJ9: ='McClellan, S'!$F$19 -> 0 | AK9: 0 | AN9: ='McClellan, S'!$F$20 -> 3.08 | AO9: 46.2 | AR9: ='McClellan, S'!$F$21 -> 0 | AS9: 0 | AV9: ='McClellan, S'!$F$22 -> 0 | AW9: 0 | AZ9: ='McClellan, S'!$F$23 -> 0 | BA9: 0 | BD9: ='McClellan, S'!$F$24 -> 0 | BE9: 0 | BH9: ='McClellan, S'!$F$25 -> 0 | BI9: 0 | BL9: ='McClellan, S'!$F$26 -> 0 | BM9: 0 | BP9: ='McClellan, S'!$F$27 -> 0 | BQ9: 0 | BT9: ='McClellan, S'!$F$28 -> 0 | BU9: 0 | BX9: ='McClellan, S'!$F$29 -> 0 | BY9: 0 | CB9: ='McClellan, S'!$F$30 -> 0 | CC9: 0 | CF9: ='McClellan, S'!$F$31 -> 0 | CG9: 0 | CJ9: ='McClellan, S'!$F$32 -> 0 | CK9: 0 | CN9: ='McClellan, S'!$F$33 -> 0 | CO9: 0 | CR9: ='McClellan, S'!$F$34 -> 0 | CS9: 0 | CV9: ='McClellan, S'!$F$35 -> 0 | CW9: 0 | CZ9: ='McClellan, S'!$F$36 -> 0 | DA9: 0 | DD9: ='McClellan, S'!$F$37 -> 0 | DE9: 0
A10: Morgan, Paul | B10: ='Morgan, P'!H6 -> 29.8 | C10: 1088.892 | D10: ='Morgan, P'!H39 -> 38 | E10: ='Morgan, P'!H5 -> 36.928 | F10: 36.54 | G10: 1349.34912 | H10: ='Morgan, P'!F12 -> 4.616 | I10: 168.66864 | L10: ='Morgan, P'!F13 -> 4.616 | M10: 168.66864 | P10: ='Morgan, P'!F14 -> 4.616 | Q10: 168.66864 | T10: ='Morgan, P'!F15 -> 4.616 | U10: 168.66864 | X10: ='Morgan, P'!F16 -> 4.616 | Y10: 168.66864 | AB10: ='Morgan, P'!F17 -> 4.616 | AC10: 168.66864 | AF10: ='Morgan, P'!F18 -> 4.616 | AG10: 168.66864 | AJ10: ='Morgan, P'!F19 -> 0 | AK10: 0 | AN10: ='Morgan, P'!F20 -> 4.616 | AO10: 168.66864 | AR10: ='Morgan, P'!F21 -> 0 | AS10: 0 | AV10: ='Morgan, P'!F22 -> 0 | AW10: 0 | AZ10: ='Morgan, P'!F23 -> 0 | BA10: 0 | BD10: ='Morgan, P'!F24 -> 0 | BE10: 0 | BH10: ='Morgan, P'!F25 -> 0 | BI10: 0 | BL10: ='Morgan, P'!F26 -> 0 | BM10: 0 | BP10: ='Morgan, P'!F27 -> 0 | BQ10: 0 | BT10: ='Morgan, P'!F28 -> 0 | BU10: 0 | BX10: ='Morgan, P'!F29 -> 0 | BY10: 0 | CB10: ='Morgan, P'!F30 -> 0 | CC10: 0 | CF10: ='Morgan, P'!F31 -> 0 | CG10: 0 | CJ10: ='Morgan, P'!F32 -> 0 | CK10: 0 | CN10: ='Morgan, P'!F33 -> 0 | CO10: 0 | CR10: ='Morgan, P'!F34 -> 0 | CS10: 0 | CV10: ='Morgan, P'!F35 -> 0 | CW10: 0 | CZ10: ='Morgan, P'!F36 -> 0 | DA10: 0 | DD10: ='Morgan, P'!F37 -> 0 | DE10: 0
A11: Zed, Sam | B11: ='Zed, S'!H6 -> -22.77 | C11: -821.0862 | D11: ='Zed, S'!H39 -> 13 | E11: ='Zed, S'!H5 -> 36.928 | F11: 36.06 | G11: 1331.62368 | H11: ='Zed, S'!F12 -> 4.616 | I11: 166.45296 | L11: ='Zed, S'!F13 -> 4.616 | M11: 166.45296 | P11: ='Zed, S'!F14 -> 4.616 | Q11: 166.45296 | T11: ='Zed, S'!F15 -> 4.616 | U11: 166.45296 | X11: ='Zed, S'!F16 -> 4.616 | Y11: 166.45296 | AB11: ='Zed, S'!F17 -> 4.616 | AC11: 166.45296 | AF11: ='Zed, S'!F18 -> 4.616 | AG11: 166.45296 | AJ11: ='Zed, S'!F19 -> 0 | AK11: 0 | AN11: ='Zed, S'!F20 -> 4.616 | AO11: 166.45296 | AR11: ='Zed, S'!F21 -> 0 | AS11: 0 | AV11: ='Zed, S'!F22 -> 0 | AW11: 0 | AZ11: ='Zed, S'!F23 -> 0 | BA11: 0 | BD11: ='Zed, S'!F24 -> 0 | BE11: 0 | BH11: ='Zed, S'!F25 -> 0 | BI11: 0 | BL11: ='Zed, S'!F26 -> 0 | BM11: 0 | BP11: ='Zed, S'!F27 -> 0 | BQ11: 0 | BT11: ='Zed, S'!F28 -> 0 | BU11: 0 | BX11: ='Zed, S'!F29 -> 0 | BY11: 0 | CB11: ='Zed, S'!F30 -> 0 | CC11: 0 | CF11: ='Zed, S'!F31 -> 0 | CG11: 0 | CJ11: ='Zed, S'!F32 -> 0 | CK11: 0 | CN11: ='Zed, S'!F33 -> 0 | CO11: 0 | CR11: ='Zed, S'!F34 -> 0 | CS11: 0 | CV11: ='Zed, S'!F35 -> 0 | CW11: 0 | CZ11: ='Zed, S'!F36 -> 0 | DA11: 0 | DD11: ='Zed, S'!F37 -> 0 | DE11: 0
A13: TOTAL | B13: =SUM(B5:B12) -> 143.24 | C13: =SUM(C5:C12) -> 6338.1393 | G13: =SUM(G5:G12) -> 6407.383675 | H13: =SUM(H5:H12) -> 19.618525 | I13: =SUM(I5:I12) -> 776.404475 | L13: =SUM(L5:L12) -> 20.008 | M13: =SUM(M5:M12) -> 797.8256 | P13: =SUM(P5:P12) -> 20.008 | Q13: =SUM(Q5:Q12) -> 797.8256 | T13: =SUM(T5:T12) -> 20.008 | U13: =SUM(U5:U12) -> 797.8256 | X13: =SUM(X5:X12) -> 20.008 | Y13: =SUM(Y5:Y12) -> 797.8256 | AB13: =SUM(AB5:AB12) -> 20.008 | AC13: =SUM(AC5:AC12) -> 797.8256 | AF13: =SUM(AF5:AF12) -> 20.008 | AG13: =SUM(AG5:AG12) -> 797.8256 | AJ13: =SUM(AJ5:AJ12) -> 0 | AK13: =SUM(AK5:AK12) -> 0 | AN13: =SUM(AN5:AN12) -> 23.088 | AO13: =SUM(AO5:AO12) -> 844.0256 | AR13: =SUM(AR5:AR12) -> 0 | AS13: =SUM(AS5:AS12) -> 0 | AV13: =SUM(AV5:AV12) -> 0 | AW13: =SUM(AW5:AW12) -> 0 | AZ13: =SUM(AZ5:AZ12) -> 0 | BA13: =SUM(BA5:BA12) -> 0 | BD13: =SUM(BD5:BD12) -> 0 | BE13: =SUM(BE5:BE12) -> 0 | BH13: =SUM(BH5:BH12) -> 0 | BI13: =SUM(BI5:BI12) -> 0 | BL13: =SUM(BL5:BL12) -> 0 | BM13: =SUM(BM5:BM12) -> 0 | BP13: =SUM(BP5:BP12) -> 0 | BQ13: =SUM(BQ5:BQ12) -> 0 | BT13: =SUM(BT5:BT12) -> 0 | BU13: =SUM(BU5:BU12) -> 0 | BX13: =SUM(BX5:BX12) -> 0 | BY13: =SUM(BY5:BY12) -> 0 | CB13: =SUM(CB5:CB12) -> 0 | CC13: =SUM(CC5:CC12) -> 0 | CF13: =SUM(CF5:CF12) -> 0 | CG13: =SUM(CG5:CG12) -> 0 | CJ13: =SUM(CJ5:CJ12) -> 0 | CK13: =SUM(CK5:CK12) -> 0 | CN13: =SUM(CN5:CN12) -> 0 | CO13: =SUM(CO5:CO12) -> 0 | CR13: =SUM(CR5:CR12) -> 0 | CS13: =SUM(CS5:CS12) -> 0 | CV13: =SUM(CV5:CV12) -> 0 | CW13: =SUM(CW5:CW12) -> 0 | CZ13: =SUM(CZ5:CZ12) -> 0 | DA13: =SUM(DA5:DA12) -> 0 | DD13: =SUM(DD5:DD12) -> 0 | DE13: =SUM(DE5:DE12) -> 0
H14: 11 | L14: 12 | P14: 12 | T14: 14 | X14: 15 | AB14: 16 | AF14: 17 | AJ14: 18 | AN14: 19 | AR14: 20 | AV14: 21 | AZ14: 22 | BD14: 23 | BH14: 24 | BL14: 25 | BP14: 26 | BT14: 27 | BX14: 28 | CB14: 29 | CF14: 30 | CJ14: 31 | CN14: 32 | CR14: 33 | CV14: 34 | CZ14: 35 | DD14: 36
A21: Terminated Employees
F23: =COUNT(#REF!) -> 0

Sheet Format
B1: Employee: | H1: PTO 2014
B2: Date of Hire: | G2: Year Type (Full or Partial):
B3: PTO Hours Summary
B4: 2014 Actual Hours Worked to Date: | H4: =D39 -> 0
B5: 2014 Actual PTO Hours Earned: | E5: (Maximum PTO hours: 240) | H5: =SUM(H4*I5) -> 0
B6: Prior Year Carry Over | H6: 0
B7: Total PTO Hours Available | H7: =SUM(H5:H6) -> 0
B8: PTO Hours Used: | H8: =H39 -> 0
B9: Actual PTO Hours Available: | H9: =SUM(H7-H8) -> 0
B10: Maximin PTO allowed
B11: Pay Date | D11: Hrs Worked | E11: Actual Hrs | F11: Earned | G11: Date | H11: Hours Used | I11: Notes
A12: 1 | B12: 2014-01-10 | F12: =D12*$I$5 -> 0
A13: 2 | B13: 2014-01-24 | F13: =D13*$I$5 -> 0
A14: 3 | B14: 2014-02-07 | F14: 0
A15: 4 | B15: 2014-02-21 | F15: 0
A16: 5 | B16: 2014-03-07 | F16: 0
A17: 6 | B17: 2014-03-21 | F17: 0
A18: 7 | B18: 2014-04-04 | F18: 0
A19: 8 | B19: 2014-04-18 | F19: 0
A20: 9 | B20: 2014-05-02 | F20: 0
A21: 10 | B21: 2014-05-16 | F21: 0
A22: 11 | B22: 2014-05-30 | F22: 0
A23: 12 | B23: 2014-06-13 | F23: 0
A24: 13 | B24: 2014-06-27 | F24: 0
A25: 14 | B25: 2014-07-11 | F25: 0
A26: 15 | B26: 2014-07-25 | F26: 0
A27: 16 | B27: 2014-08-08 | F27: 0
A28: 17 | B28: 2014-08-22 | F28: 0
A29: 18 | B29: 2014-09-05 | F29: 0
A30: 19 | B30: 2014-09-19 | F30: 0
A31: 20 | B31: 2014-10-03 | F31: 0
A32: 21 | B32: 2014-10-17 | F32: 0
A33: 22 | B33: 2014-10-31 | F33: 0
A34: 23 | B34: 2014-11-14 | F34: 0
A35: 24 | B35: 2014-11-28 | F35: 0
A36: 25 | B36: 2014-12-12 | F36: 0
A37: 26 | B37: 2014-12-26 | F37: 0
B39: Total Hours Worked to Date: | D39: =SUM(D12:D38) -> 0 | E39: =SUM(E12:E38) -> 0 | G39: Used Hours | H39: =SUM(H12:H38) -> 0
B40: PTO Rule: Use them or lose them--Can have 160 on record max.
B41: As long as the Actual Hours worked is greater than the Hours worked, PTO accrual will be 80 hours per pay period.

Sheet Quick Report
A1: PTO 2014
B2: Used in 2014 | C2: Remaining in 2014 | D2: Pay Rate | E2: Liability
A3: Bart, David | B3: ='Bart, D'!H39 -> 10 | C3: ='Bart, D'!H9 -> 97.998525 | D3: ='PR Liability'!F5 -> 55 | E3: =IF((C3*D3)>0,C3*D3,0) -> 5389.918875
A4: Bradley, Ryan | B4: ='Bradley, R'!H39 -> 27 | C4: ='Bradley, R'!H9 -> 34.59 | D4: ='PR Liability'!F6 -> 27.89 | E4: 964.7151
A5: Johnson, Scott | B5: ='Johnson, S'!H39 -> 24 | C5: ='Johnson, S'!H9 -> 28.44 | D5: ='PR Liability'!F7 -> 39.91 | E5: 1135.0404
A6: Macky, Johnny | B6: ='Macky, J'!$H$39 -> 0 | C6: ='Macky, J'!$H$9 -> 0 | D6: ='PR Liability'!F8 -> 14 | E6: 0
A7: McClellan, Scott | B7: ='McClellan, S'!$H$39 -> 0 | C7: ='McClellan, S'!$H$9 -> 3.08 | D7: ='PR Liability'!F9 -> 15 | E7: 46.2
A8: Morgan, Paul | B8: ='Morgan, P'!H39 -> 38 | C8: ='Morgan, P'!H9 -> 28.728 | D8: ='PR Liability'!F10 -> 36.54 | E8: 1049.72112
A9: Zed, Sam | B9: ='Zed, S'!H39 -> 13 | C9: ='Zed, S'!H9 -> 1.158 | D9: ='PR Liability'!F11 -> 36.06 | E9: 41.75748
B10: TOTAL | E10: =SUM(E3:$E$9) -> 8627.352975

Sheet Bart, D
B1: Employee: | C1: David Bart | H1: PTO 2014
B2: Date of Hire: | C2: 2013-04-11 | G2: Year Type (Full or Partial): | I2: F
B3: PTO Hours Summary
B4: 2014 Actual Hours Worked to Date: | H4: =SUM(D39) -> 633.25
B5: 2014 Actual PTO Hours Earned: | E5: (Maximum PTO hours: 240) | H5: =SUM(H4*I5) -> 36.538525 | I5: 0.0577
B6: Prior Year Carry Over | H6: 71.46
B7: Total PTO Hours Available | H7: =SUM(H5:H6) -> 107.998525
B8: PTO Hours Used: | H8: =SUM(H39) -> 10
B9: Actual PTO Hours Available: | H9: =SUM(H7-H8) -> 97.998525
B10: Maximin PTO allowed | H10: 240
B11: Pay Date | D11: Hrs Worked | E11: Actual Hrs | F11: Earned | G11: Date | H11: Hours Used | I11: Notes
A12: 1 | B12: 2014-01-10 | D12: 73.25 | E12: 73.25 | F12: =D12*0.0577 -> 4.226525 | G12: 2014-04-15 | H12: 10 | I12: test
A13: 2 | B13: 2014-01-24 | D13: 80 | E13: 84.5 | F13: =D13*0.0577 -> 4.616
A14: 3 | B14: 2014-02-07 | D14: 80 | E14: 87.75 | F14: =D14*0.0577 -> 4.616
A15: 4 | B15: 2014-02-21 | D15: 80 | E15: 79.75 | F15: 4.616
A16: 5 | B16: 2014-03-07 | D16: 80 | E16: 88.75 | F16: 4.616
A17: 6 | B17: 2014-03-21 | D17: 80 | E17: 84.75 | F17: 4.616
A18: 7 | B18: 2014-04-04 | D18: 80 | E18: 88.5 | F18: 4.616
A19: 8 | B19: 2014-04-18 | F19: 0
A20: 9 | B20: 2014-05-02 | D20: 80 | F20: 4.616
A21: 10 | B21: 2014-05-16 | F21: 0
A22: 11 | B22: 2014-05-30 | F22: 0
A23: 12 | B23: 2014-06-13 | F23: 0
A24: 13 | B24: 2014-06-27 | F24: 0
A25: 14 | B25: 2014-07-11 | F25: 0
A26: 15 | B26: 2014-07-25 | F26: 0
A27: 16 | B27: 2014-08-08 | F27: 0
A28: 17 | B28: 2014-08-22 | F28: 0
A29: 18 | B29: 2014-09-05 | F29: 0
A30: 19 | B30: 2014-09-19 | F30: 0
A31: 20 | B31: 2014-10-03 | F31: 0
A32: 21 | B32: 2014-10-17 | F32: 0
A33: 22 | B33: 2014-10-31 | F33: 0
A34: 23 | B34: 2014-11-14 | F34: 0
A35: 24 | B35: 2014-11-28 | F35: 0
A36: 25 | B36: 2014-12-12 | F36: 0
A37: 26 | B37: 2014-12-26 | F37: =D37*0.0577 -> 0
B39: Total Hours Worked to Date: | D39: =SUM(D12:D38) -> 633.25 | E39: =SUM(E12:E38) -> 587.25 | G39: Used Hours | H39: =SUM(H12:H32) -> 10
B40: PTO Rule: Use them or lose them--Can have 160 on record max.
B41: As long as the Actual Hours worked is greater than the Hours worked, PTO accrual will be 80 hours per pay period.

Sheet Bradley, R
B1: Employee: | C1: Ryan Bradley | H1: PTO 2014
B2: Date of Hire: | C2: 2013-03-29 | G2: Year Type (Full or Partial): | I2: F
B3: PTO Hours Summary
B4: 2014 Actual Hours Worked to Date: | H4: =SUM(D39) -> 640
B5: 2014 Actual PTO Hours Earned: | E5: (Maximum PTO hours: 160) | H5: =SUM(H4*I5) -> 24.64 | I5: 0.0385
B6: Prior Year Carry Over | H6: 36.95
B7: Total PTO Hours Available | H7: =SUM(H5:H6) -> 61.59
B8: PTO Hours Used: | H8: =SUM(H39) -> 27
B9: Actual PTO Hours Available: | H9: =SUM(H7-H8) -> 34.59
B10: Maximin PTO allowed | H10: 160
B11: Pay Date | D11: Hrs Worked | E11: Actual Hrs | F11: Earned | G11: Date | H11: Hours Used | I11: Notes
A12: 1 | B12: 2014-01-10 | D12: 80 | E12: 80 | F12: =D12*0.0385 -> 3.08 | G12: 2013-12-24 | H12: 8
A13: 2 | B13: 2014-01-24 | D13: 80 | E13: 79.75 | F13: 3.08 | G13: 2014-01-02 | H13: 2.5
A14: 3 | B14: 2014-02-07 | D14: 80 | E14: 109 | F14: 3.08 | G14: 2014-01-03 | H14: 2
A15: 4 | B15: 2014-02-21 | D15: 80 | E15: 80 | F15: 3.08 | G15: 2014-01-13 | H15: 8
A16: 5 | B16: 2014-03-07 | D16: 80 | E16: 122.5 | F16: 3.08 | G16: 2014-03-03 | H16: 6.5
A17: 6 | B17: 2014-03-21 | D17: 80 | E17: 81.5 | F17: 3.08
A18: 7 | B18: 2014-04-04 | D18: 80 | E18: 82.75 | F18: 3.08
A19: 8 | B19: 2014-04-18 | F19: 0
A20: 9 | B20: 2014-05-02 | D20: 80 | F20: 3.08
A21: 10 | B21: 2014-05-16 | F21: 0
A22: 11 | B22: 2014-05-30 | F22: 0
A23: 12 | B23: 2014-06-13 | F23: 0
A24: 13 | B24: 2014-06-27 | F24: 0
A25: 14 | B25: 2014-07-11 | F25: 0
A26: 15 | B26: 2014-07-25 | F26: 0
A27: 16 | B27: 2014-08-08 | F27: 0
A28: 17 | B28: 2014-08-22 | F28: 0
A29: 18 | B29: 2014-09-05 | F29: 0
A30: 19 | B30: 2014-09-19 | F30: 0
A31: 20 | B31: 2014-10-03 | F31: 0
A32: 21 | B32: 2014-10-17 | F32: 0
A33: 22 | B33: 2014-10-31 | F33: 0
A34: 23 | B34: 2014-11-14 | F34: 0
A35: 24 | B35: 2014-11-28 | F35: 0
A36: 25 | B36: 2014-12-12 | F36: 0
A37: 26 | B37: 2014-12-26 | F37: =D37*0.0385 -> 0
B39: Total Hours Worked to Date: | D39: =SUM(D12:D38) -> 640 | E39: =SUM(E12:E38) -> 635.5 | G39: Used Hours | H39: =SUM(H12:H32) -> 27
B40: PTO Rule: Use them or lose them--Can have 160 on record max.
B41: As long as the Actual Hours worked is greater than the Hours worked, PTO accrual will be 80 hours per pay period.

Sheet Johnson, S
B1: Employee: | C1: Scott Johnson | H1: PTO 2014
B2: Date of Hire: | C2: 2012-08-20 | G2: Year Type (Full or Partial): | I2: F
B3: PTO Hours Summary
B4: 2014 Actual Hours Worked to Date: | H4: =SUM(D39) -> 640
B5: 2014 Actual PTO Hours Earned: | E5: (Maximum PTO hours: 160) | H5: =SUM(H4*I5) -> 24.64 | I5: 0.0385
B6: Prior Year Carry Over | H6: 27.8
B7: Total PTO Hours Available | H7: =SUM(H5:H6) -> 52.44
B8: PTO Hours Used: | H8: =SUM(H39) -> 24
B9: Actual PTO Hours Available: | H9: =SUM(H7-H8) -> 28.44
B10: Maximin PTO allowed | H10: 160
B11: Pay Date | D11: Hrs Worked | E11: Actual Hrs | F11: Earned | G11: Date | H11: Hours Used | I11: Notes
A12: 1 | B12: 2014-01-10 | D12: 80 | E12: 82.5 | F12: =D12*0.0385 -> 3.08 | G12: 2013-12-24 | H12: 8
A13: 2 | B13: 2014-01-24 | D13: 80 | E13: 90.5 | F13: 3.08 | G13: 2014-01-20 | H13: 8
A14: 3 | B14: 2014-02-07 | D14: 80 | E14: 90 | F14: 3.08 | G14: 2014-03-24 | H14: 8
A15: 4 | B15: 2014-02-21 | D15: 80 | E15: 89.25 | F15: 3.08
A16: 5 | B16: 2014-03-07 | D16: 80 | E16: 87.75 | F16: 3.08
A17: 6 | B17: 2014-03-21 | D17: 80 | E17: 88 | F17: 3.08
A18: 7 | B18: 2014-04-04 | D18: 80 | E18: 88.75 | F18: 3.08
A19: 8 | B19: 2014-04-18 | F19: 0
A20: 9 | B20: 2014-05-02 | D20: 80 | F20: 3.08
A21: 10 | B21: 2014-05-16 | F21: 0
A22: 11 | B22: 2014-05-30 | F22: 0
A23: 12 | B23: 2014-06-13 | F23: 0
A24: 13 | B24: 2014-06-27 | F24: 0
A25: 14 | B25: 2014-07-11 | F25: 0
A26: 15 | B26: 2014-07-25 | F26: 0
A27: 16 | B27: 2014-08-08 | F27: 0
A28: 17 | B28: 2014-08-22 | F28: 0
A29: 18 | B29: 2014-09-05 | F29: 0
A30: 19 | B30: 2014-09-19 | F30: 0
A31: 20 | B31: 2014-10-03 | F31: 0
A32: 21 | B32: 2014-10-17 | F32: 0
A33: 22 | B33: 2014-10-31 | F33: 0
A34: 23 | B34: 2014-11-14 | F34: 0
A35: 24 | B35: 2014-11-28 | F35: 0
A36: 25 | B36: 2014-12-12 | F36: 0
A37: 26 | B37: 2014-12-26 | F37: =D37*0.0385 -> 0
B39: Total Hours Worked to Date: | D39: =SUM(D12:D38) -> 640 | E39: =SUM(E12:E38) -> 616.75 | G39: Used Hours | H39: =SUM(H12:H32) -> 24
B40: PTO Rule: Use them or lose them--Can have 160 on record max.
B41: As long as the Actual Hours worked is greater than the Hours worked, PTO accrual will be 80 hours per pay period.

Sheet Morgan, P
B1: Employee: | C1: Paul Morgan | H1: PTO 2014
B2: Date of Hire: | C2: 2010-09-24 | G2: Year Type (Full or Partial): | I2: F
B3: PTO Hours Summary
B4: 2014 Actual Hours Worked to Date: | H4: =SUM(D39) -> 640
B5: 2014 Actual PTO Hours Earned: | E5: (Maximum PTO hours: 160) | H5: =SUM(H4*I5) -> 36.928 | I5: 0.0577
B6: Prior Year Carry Over | H6: 29.8
B7: Total PTO Hours Available | H7: =SUM(H5:H6) -> 66.728
B8: PTO Hours Used: | H8: =SUM(H39) -> 38
B9: Actual PTO Hours Available: | H9: =SUM(H7-H8) -> 28.728
B10: Maximin PTO allowed | H10: 240
B11: Pay Period Ending Date | D11: Hrs Worked | E11: Actual Hrs | F11: Earned | G11: Date | H11: Hours Used | I11: Notes
A12: 1 | B12: 2014-01-10 | D12: 80 | E12: 84.5 | F12: =D12*0.0577 -> 4.616 | G12: 2013-12-24 | H12: 6
A13: 2 | B13: 2014-01-24 | D13: 80 | E13: 84.5 | F13: =D13*0.0577 -> 4.616 | G13: 2014-01-21 | H13: 4
A14: 3 | B14: 2014-02-07 | D14: 80 | E14: 81.75 | F14: =D14*0.0577 -> 4.616 | G14: 2014-02-14
A15: 4 | B15: 2014-02-21 | D15: 80 | E15: 79 | F15: =D15*0.0577 -> 4.616 | G15: 2014-02-24 | H15: 4
A16: 5 | B16: 2014-03-07 | D16: 80 | E16: 104.5 | F16: 4.616 | G16: 2014-02-25 | H16: 4
A17: 6 | B17: 2014-03-21 | D17: 80 | E17: 185.75 | F17: 4.616 | G17: 2014-03-27 | H17: 8
A18: 7 | B18: 2014-04-04 | D18: 80 | E18: 82.5 | F18: 4.616 | G18: 2014-03-28 | H18: 8
A19: 8 | B19: 2014-04-18 | F19: 0 | G19: 2014-04-04 | H19: 4
A20: 9 | B20: 2014-05-02 | D20: 80 | F20: 4.616
A21: 10 | B21: 2014-05-16 | F21: 0
A22: 11 | B22: 2014-05-30 | F22: 0
A23: 12 | B23: 2014-06-13 | F23: 0
A24: 13 | B24: 2014-06-27 | F24: 0
A25: 14 | B25: 2014-07-11 | F25: 0
A26: 15 | B26: 2014-07-25 | F26: 0
A27: 16 | B27: 2014-08-08 | F27: 0
A28: 17 | B28: 2014-08-22 | F28: 0
A29: 18 | B29: 2014-09-05 | F29: 0
A30: 19 | B30: 2014-09-19 | F30: 0
A31: 20 | B31: 2014-10-03 | F31: 0
A32: 21 | B32: 2014-10-17 | F32: 0
A33: 22 | B33: 2014-10-31 | F33: 0
A34: 23 | B34: 2014-11-14 | F34: 0
A35: 24 | B35: 2014-11-28 | F35: 0
A36: 25 | B36: 2014-12-12 | F36: 0
A37: 26 | B37: 2014-12-26 | F37: 0
B39: Total Hours Worked to Date: | D39: =SUM(D12:D38) -> 640 | E39: =SUM(E12:E38) -> 702.5 | G39: Used Hours | H39: =SUM(H12:H32) -> 38
B40: PTO Rule: Use them or lose them--Can have 160 on record max.
B41: As long as the Actual Hours worked is greater than the Hours worked, PTO accrual will be 80 hours per pay period.

Sheet Zed, S
B1: Employee: | C1: Sam Zed | H1: PTO 2014
B2: Date of Hire: | C2: 2012-08-13 | G2: Year Type (Full or Partial): | I2: F
B3: PTO Hours Summary
B4: 2014 Actual Hours Worked to Date: | H4: =SUM(D39) -> 640
B5: 2014 Actual PTO Hours Earned: | E5: (Maximum PTO hours: 160) | H5: =SUM(H4*I5) -> 36.928 | I5: 0.0577
B6: Prior Year Carry Over | H6: -22.77
B7: Total PTO Hours Available | H7: =SUM(H5:H6) -> 14.158
B8: PTO Hours Used: | H8: =SUM(H39) -> 13
B9: Actual PTO Hours Available: | H9: =SUM(H7-H8) -> 1.158
B10: Maximin PTO allowed | H10: 240
B11: Pay Date | D11: Hrs Worked | E11: Actual Hrs | F11: Earned | G11: Date | H11: Hours Used | I11: Notes
A12: 1 | B12: 2014-01-10 | D12: 80 | E12: 88 | F12: =D12*0.0577 -> 4.616 | G12: 2014-01-03 | H12: 7
A13: 2 | B13: 2014-01-24 | D13: 80 | E13: 81.25 | F13: =D13*0.0577 -> 4.616 | G13: 2014-03-28 | H13: 6
A14: 3 | B14: 2014-02-07 | D14: 80 | E14: 89.75 | F14: =D14*0.0577 -> 4.616
A15: 4 | B15: 2014-02-21 | D15: 80 | E15: 82.25 | F15: =D15*0.0577 -> 4.616
A16: 5 | B16: 2014-03-07 | D16: 80 | E16: 87 | F16: 4.616
A17: 6 | B17: 2014-03-21 | D17: 80 | E17: 82.75 | F17: 4.616
A18: 7 | B18: 2014-04-04 | D18: 80 | E18: 86 | F18: 4.616
A19: 8 | B19: 2014-04-18 | F19: 0
A20: 9 | B20: 2014-05-02 | D20: 80 | F20: 4.616
A21: 10 | B21: 2014-05-16 | F21: 0
A22: 11 | B22: 2014-05-30 | F22: 0
A23: 12 | B23: 2014-06-13 | F23: 0
A24: 13 | B24: 2014-06-27 | F24: 0
A25: 14 | B25: 2014-07-11 | F25: 0
A26: 15 | B26: 2014-07-25 | F26: 0
A27: 16 | B27: 2014-08-08 | F27: 0
A28: 17 | B28: 2014-08-22 | F28: 0
A29: 18 | B29: 2014-09-05 | F29: 0
A30: 19 | B30: 2014-09-19 | F30: 0
A31: 20 | B31: 2014-10-03 | F31: 0
A32: 21 | B32: 2014-10-17 | F32: 0
A33: 22 | B33: 2014-10-31 | F33: 0
A34: 23 | B34: 2014-11-14 | F34: 0
A35: 24 | B35: 2014-11-28 | F35: 0
A36: 25 | B36: 2014-12-12 | F36: 0
A37: 26 | B37: 2014-12-26 | F37: 0
B39: Total Hours Worked to Date: | D39: =SUM(D12:D38) -> 640 | E39: =SUM(E12:E38) -> 597 | G39: Used Hours | H39: =SUM(H12:H32) -> 13
B40: PTO Rule: Use them or lose them--Can have 160 on record max.
B41: As long as the Actual Hours worked is greater than the Hours worked, PTO accrual will be 80 hours per pay period.

Sheet McClellan, S
B1: Employee: | C1: Scott McClellan | H1: PTO 2014
B2: Date of Hire: | C2: 2014-03-30 | G2: Year Type (Full or Partial): | I2: P
B3: PTO Hours Summary
B4: 2014 Actual Hours Worked to Date: | H4: =D39 -> 80
B5: 2014 Actual PTO Hours Earned: | E5: (Maximum PTO hours: 240) | H5: =SUM(H4*I5) -> 3.08 | I5: 0.0385
B6: Prior Year Carry Over | H6: 0
B7: Total PTO Hours Available | H7: =SUM(H5:H6) -> 3.08
B8: PTO Hours Used: | H8: =H39 -> 0
B9: Actual PTO Hours Available: | H9: =SUM(H7-H8) -> 3.08
B10: Maximin PTO allowed | H10: 160
B11: Pay Date | D11: Hrs Worked | E11: Actual Hrs | F11: Earned | G11: Date | H11: Hours Used | I11: Notes
A12: 1 | B12: 2014-01-10 | F12: =D12*$I$5 -> 0
A13: 2 | B13: 2014-01-24 | F13: =D13*$I$5 -> 0
A14: 3 | B14: 2014-02-07 | F14: 0
A15: 4 | B15: 2014-02-21 | F15: 0
A16: 5 | B16: 2014-03-07 | F16: 0
A17: 6 | B17: 2014-03-21 | F17: 0
A18: 7 | B18: 2014-04-04 | F18: 0
A19: 8 | B19: 2014-04-18 | F19: 0
A20: 9 | B20: 2014-05-02 | D20: 80 | F20: 3.08
A21: 10 | B21: 2014-05-16 | F21: 0
A22: 11 | B22: 2014-05-30 | F22: 0
A23: 12 | B23: 2014-06-13 | F23: 0
A24: 13 | B24: 2014-06-27 | F24: 0
A25: 14 | B25: 2014-07-11 | F25: 0
A26: 15 | B26: 2014-07-25 | F26: 0
A27: 16 | B27: 2014-08-08 | F27: 0
A28: 17 | B28: 2014-08-22 | F28: 0
A29: 18 | B29: 2014-09-05 | F29: 0
A30: 19 | B30: 2014-09-19 | F30: 0
A31: 20 | B31: 2014-10-03 | F31: 0
A32: 21 | B32: 2014-10-17 | F32: 0
A33: 22 | B33: 2014-10-31 | F33: 0
A34: 23 | B34: 2014-11-14 | F34: 0
A35: 24 | B35: 2014-11-28 | F35: 0
A36: 25 | B36: 2014-12-12 | F36: 0
A37: 26 | B37: 2014-12-26 | F37: 0
B39: Total Hours Worked to Date: | D39: =SUM(D12:D38) -> 80 | E39: =SUM(E12:E38) -> 0 | G39: Used Hours | H39: =SUM(H12:H38) -> 0
B40: PTO Rule: Use them or lose them--Can have 160 on record max.
B41: As long as the Actual Hours worked is greater than the Hours worked, PTO accrual will be 80 hours per pay period.

Sheet Macky, J
B1: Employee: | C1: Johnny Macky | H1: PTO 2014
B2: Date of Hire: | C2: 2014-02-15 | G2: Year Type (Full or Partial): | I2: P
B3: PTO Hours Summary
B4: 2014 Actual Hours Worked to Date: | H4: =D39 -> 0
B5: 2014 Actual PTO Hours Earned: | E5: (Maximum PTO hours: 240) | H5: =SUM(H4*I5) -> 0 | I5: 0.0577
B6: Prior Year Carry Over | H6: 0
B7: Total PTO Hours Available | H7: =SUM(H5:H6) -> 0
B8: PTO Hours Used: | H8: =H39 -> 0
B9: Actual PTO Hours Available: | H9: =SUM(H7-H8) -> 0
B10: Maximin PTO allowed | H10: 240
B11: Pay Date | D11: Hrs Worked | E11: Actual Hrs | F11: Earned | G11: Date | H11: Hours Used | I11: Notes
A12: 1 | B12: 2014-01-10 | F12: =D12*$I$5 -> 0
A13: 2 | B13: 2014-01-24 | F13: =D13*$I$5 -> 0
A14: 3 | B14: 2014-02-07 | F14: 0
A15: 4 | B15: 2014-02-21 | F15: 0
A16: 5 | B16: 2014-03-07 | F16: 0
A17: 6 | B17: 2014-03-21 | F17: 0
A18: 7 | B18: 2014-04-04 | F18: 0
A19: 8 | B19: 2014-04-18 | F19: 0
A20: 9 | B20: 2014-05-02 | F20: 0
A21: 10 | B21: 2014-05-16 | F21: 0
A22: 11 | B22: 2014-05-30 | F22: 0
A23: 12 | B23: 2014-06-13 | F23: 0
A24: 13 | B24: 2014-06-27 | F24: 0
A25: 14 | B25: 2014-07-11 | F25: 0
A26: 15 | B26: 2014-07-25 | F26: 0
A27: 16 | B27: 2014-08-08 | F27: 0
A28: 17 | B28: 2014-08-22 | F28: 0
A29: 18 | B29: 2014-09-05 | F29: 0
A30: 19 | B30: 2014-09-19 | F30: 0
A31: 20 | B31: 2014-10-03 | F31: 0
A32: 21 | B32: 2014-10-17 | F32: 0
A33: 22 | B33: 2014-10-31 | F33: 0
A34: 23 | B34: 2014-11-14 | F34: 0
A35: 24 | B35: 2014-11-28 | F35: 0
A36: 25 | B36: 2014-12-12 | F36: 0
A37: 26 | B37: 2014-12-26 | F37: 0
B39: Total Hours Worked to Date: | D39: =SUM(D12:D38) -> 0 | E39: =SUM(E12:E38) -> 0 | G39: Used Hours | H39: =SUM(H12:H38) -> 0
B40: PTO Rule: Use them or lose them--Can have 160 on record max.
B41: As long as the Actual Hours worked is greater than the Hours worked, PTO accrual will be 80 hours per pay period.
